bitfinex-derivatives/quotes_ETHF0:USTF0_20250320
["timestamp","ask_amount","ask_price","bid_price","bid_amount"]
[1742436299555,0.7886,2028.5,2028.3,1.3581]
[1742436299859,3.287,2028.6,2028.3,1.3581]
[1742436300052,0.78862,2028.4,2028.3,1.3581]
[1742436300251,2.1028,2028.5,2028.3,1.3581]
[1742436300454,1.3142,2028.5,2028.3,1.3581]
[1742436300652,3.287,2028.6,2028.3,1.3581]
[1742436300653,4.07557,2028.6,2028.3,1.3581]
[1742436300853,3.287,2028.6,2028.3,1.3581]
[1742436301162,4.07557,2028.6,2028.3,1.3581]
[1742436301466,4.0765,2028.7,2028.4,0.7886]
[1742436301662,4.0765,2028.7,2028.5,1.4032]
[1742436301861,3.288,2028.7,2028.5,1.4032]
[1742436302068,0.78854,2028.6,2028.5,1.4032]
[1742436303053,2.14224,2028.6,2028.5,1.4032]
[1742436303449,0.78866,2028.3,2028.2,4.5785]
[1742436303654,5.94784,2028.7,2028.2,4.5785]
[1742436303655,3.288,2028.4,2028.2,4.5785]
[1742436303856,3.21518807,2028.5,2028.2,4.5785]
[1742436304055,3.21518807,2028.5,2028.4,0.78862]
[1742436304365,0.00738807,2028.5,2028.4,0.78862]
[1742436304569,3.9556,2029.0,2028.7,0.78848]
[1742436304864,2.10855,2028.9,2028.7,0.7885]
[1742436305053,0.78845,2028.9,2028.8,1.3419]
[1742436305968,3.9556,2029.0,2028.8,1.3419]
[1742436305969,4.74401,2029.0,2028.8,1.3419]
[1742436306159,1.45601,2029.0,2028.8,2.13033]
[1742436306467,0.78843,2028.9,2028.8,1.3419]
[1742436308366,3.99623,2028.9,2028.8,1.3419]
[1742436309159,4.74401,2029.0,2028.8,1.3419]
[1742436309367,3.288,2029.0,2028.4,3.288]
[1742436309556,3.288,2029.0,2028.4,44.088]
[1742436310065,0.78844,2028.9,2028.7,0.78848]
[1742436310272,0.78844,2028.9,2028.6,0.78851]
[1742436310462,0.78844,2028.9,2028.7,0.78848]
[1742436310959,0.78847,2028.8,2028.7,0.78848]
[1742436311151,3.288,2029.0,2028.6,3.2078]
[1742436311356,0.78839,2029.0,2028.6,6.4958]
[1742436311570,0.78844,2028.9,2028.7,0.78847]
[1742436311867,0.78854,2028.6,2028.5,4.04950606]
[1742436312060,0.78854,2028.6,2028.5,4.83808606]
[1742436312261,0.78853,2028.7,2028.5,4.83808606]
[1742436312560,0.78854,2028.6,2028.5,4.04950606]
[1742436313264,0.78858,2028.5,2028.4,41.58859]
[1742436313465,0.78862,2028.4,2028.2,3.99647]
[1742436313765,3.288,2028.7,2028.3,0.78866]
[1742436313766,0.7886,2028.5,2028.3,0.78866]
[1742436314069,0.78862,2028.4,2028.2,3.99648]
[1742436314267,0.78866,2028.3,2028.2,3.2078]
[1742436315371,0.7887,2028.2,2028.1,0.00738807]
[1742436315565,0.7887,2028.2,2028.1,0.65318807]
[1742436316068,0.7887,2028.2,2028.1,2.01898807]
[1742436316373,3.9965,2028.2,2028.1,2.01898807]
[1742436316571,5.2897,2028.2,2028.1,2.01898807]
[1742436317362,5.2897,2028.2,2028.1,0.00738807]
[1742436317571,7.7897,2028.2,2028.1,0.00738807]
[1742436317767,7.7897,2028.2,2027.3,11.19210606]
[1742436317768,0.78897,2027.5,2027.4,1.3658]
[1742436318067,0.78916,2027.1,2026.8,3.2078]
[1742436318269,3.289,2027.3,2026.9,0.6458]
[1742436318571,4.07805,2027.3,2027.0,0.78914]
[1742436318874,3.289,2027.3,2027.1,2.17211]
[1742436319166,3.289,2027.3,2027.2,1.383]
[1742436319774,0.79639807,2027.4,2027.2,2.17208]
[1742436320065,0.79639807,2027.4,2027.3,1.3272]
[1742436320371,0.78905,2027.3,2027.2,1.383]
[1742436320669,4.07805,2027.3,2027.2,2.7102]
[1742436321265,0.78905,2027.3,2027.2,2.7102]
[1742436321880,0.00738807,2027.4,2027.2,3.49927]
[1742436322673,0.79640807,2027.4,2027.2,2.7102]
[1742436323059,0.00738807,2027.4,2027.2,3.49928]
[1742436323264,0.00738807,2027.4,2027.3,0.78905]
[1742436323667,5.96,2027.8,2027.7,0.78889]
[1742436323873,5.96,2027.8,2027.6,0.78891]
[1742436324072,5.96,2027.8,2027.7,2.75019]
[1742436324275,6.74885,2027.8,2027.7,1.9613]
[1742436324768,5.96,2027.8,2027.7,1.9613]
[1742436324966,4.51288807,2028.0,2027.7,2.75019]
[1742436325166,4.51288807,2028.0,2027.7,1.9613]
[1742436325368,0.78885,2027.8,2027.7,1.9613]
[1742436325761,0.78884,2027.9,2027.7,1.9613]
[1742436326274,0.78885,2027.8,2027.7,1.9613]
[1742436326463,0.78881,2027.9,2027.7,1.9613]
[1742436326664,7.30198807,2028.0,2027.7,2.75017]
[1742436326861,4.51288807,2028.0,2027.8,0.6477]
[1742436327066,5.30169807,2028.0,2027.9,1.3402]
[1742436327772,4.51288807,2028.0,2027.9,1.3402]
[1742436327973,0.00738807,2028.0,2027.9,2.12901]
[1742436328363,0.79616807,2028.0,2027.9,1.3402]
[1742436329466,1.41178807,2028.0,2027.9,1.3402]
[1742436329667,0.00738807,2028.0,2027.9,2.12901]
[1742436330367,0.00738807,2028.0,2027.9,5.42601]
[1742436330776,3.2078,2028.6,2027.9,7.1372]
[1742436330777,6.5048,2028.6,2027.9,7.1372]
[1742436331078,2.10881,2028.5,2028.3,0.78866]
[1742436331275,1.3202,2028.5,2028.4,1.2904]
[1742436331474,3.99635,2028.6,2028.4,1.2904]
[1742436331676,3.2078,2028.6,2028.4,1.2904]
[1742436331979,0.00738807,2028.7,2028.5,0.78858]
[1742436332169,0.79588807,2028.7,2028.6,1.9627]
[1742436332576,0.78858,2028.5,2028.4,3.2078]
[1742436333483,1.3202,2028.6,2028.4,3.2078]
[1742436333673,0.79590807,2028.7,2028.5,0.78858]
[1742436333978,0.79590807,2028.7,2028.5,2.18768]
[1742436334174,0.78854,2028.6,2028.5,1.3991]
[1742436334476,0.00738807,2028.7,2028.6,0.78854]
[1742436334679,0.79589807,2028.7,2028.5,2.18765]
[1742436334874,0.78854,2028.6,2028.5,1.3991]
[1742436335183,2.07724,2028.6,2028.5,1.3991]
[1742436335569,0.00738807,2028.7,2028.6,0.78854]
[1742436335784,0.00738807,2028.7,2028.6,1.47014]
[1742436336579,3.2078,2028.9,2028.8,0.78847]
[1742436336783,5.96,2030.0,2029.0,0.78836]
[1742436336784,0.78835,2029.1,2029.0,0.78836]
[1742436336979,1.2887,2029.5,2029.0,0.78836]
[1742436337169,0.78832,2029.2,2029.1,1.3516]
[1742436338475,3.99612,2029.2,2029.1,1.3516]
[1742436338781,0.78838,2029.1,2028.9,0.78843]
[1742436338984,0.78839,2029.0,2028.9,1.3516]
[1742436339685,1.3156,2029.1,2028.9,1.3516]
[1742436339888,0.78839,2029.0,2028.9,1.3516]
[1742436341087,1.3156,2029.1,2028.8,3.2078]
[1742436341088,0.78843,2028.9,2028.8,3.2078]
[1742436341271,2.16013,2028.9,2028.8,3.2078]
[1742436341588,1.3717,2028.9,2028.8,3.2078]
[1742436341978,1.3717,2028.9,2028.8,3.99627]
[1742436342486,2.16013,2028.9,2028.8,3.2078]
[1742436342980,0.7885,2028.7,2028.6,1.3009]
[1742436343189,0.78857,2028.6,2028.4,1.3566]
[1742436343485,0.78858,2028.5,2028.4,1.95]
[1742436343680,0.78858,2028.5,2028.3,7.80318807]
[1742436343681,1.44478,2028.5,2028.3,7.80318807]
[1742436343992,5.43612,2028.4,2028.3,0.00738807]
[1742436347788,2.13412,2028.4,2028.3,0.00738807]
[1742436347989,5.43712,2028.4,2028.3,0.00738807]
[1742436348792,2.13412,2028.4,2028.3,0.00738807]
[1742436349589,1.3455,2028.4,2028.3,0.79604807]
[1742436349783,2.13412,2028.4,2028.3,0.00738807]
[1742436349986,1.3455,2028.4,2028.3,0.79604807]
[1742436350789,3.2078,2028.6,2028.4,0.7886]
[1742436350989,2.14194,2028.6,2028.5,1.3868]
[1742436354391,0.78862,2028.4,2028.3,0.00738807]
[1742436354593,0.78862,2028.4,2028.3,1.36248807]
[1742436355091,4.08362,2028.4,2028.3,0.00738807]
[1742436355492,5.41842,2028.4,2028.3,0.00738807]
[1742436356297,2.12342,2028.4,2028.3,0.00738807]
[1742436358796,5.42242,2028.4,2028.3,0.00738807]
[1742436359298,0.78858,2028.5,2028.4,0.7886]
[1742436359499,7.859,2028.6,2028.4,2.7141]
[1742436359703,1.3422,2028.5,2028.4,2.7141]
[1742436359895,1.3422,2028.5,2028.4,1.4315]
[1742436360199,3.2078,2028.6,2028.5,0.78858]
[1742436360494,7.30525,2028.9,2028.8,0.78847]
[1742436360803,0.78847,2028.8,2028.7,0.78848]
[1742436361394,0.78842,2029.0,2028.6,1.97136]
[1742436361698,0.7884,2029.0,2028.6,1.97133]
[1742436361898,1.3351,2029.1,2028.6,1.97136]
[1742436362100,7.30713,2029.2,2028.7,5.28222]
[1742436362299,0.78835,2029.1,2028.9,0.78839]
[1742436362603,3.2078,2029.2,2029.0,1.43776]
[1742436362801,3.99611,2029.2,2029.1,0.78835]
[1742436362996,3.2078,2029.2,2029.1,0.78835]
[1742436363198,0.78828,2029.3,2029.1,0.78835]
[1742436363706,0.78828,2029.3,2029.2,0.6744]
[1742436364203,0.78828,2029.3,2029.2,1.46271]
[1742436364995,0.78828,2029.3,2029.2,0.6744]
[1742436365399,1.3351,2029.4,2029.2,0.6744]
[1742436365400,2.12336,2029.4,2029.2,0.6744]
[1742436365599,2.12336,2029.4,2029.2,1.46268]
[1742436365796,0.78827,2029.3,2029.2,1.46268]
[1742436366097,0.78827,2029.3,2029.2,0.6744]
[1742436366496,1.3351,2029.4,2029.2,1.46271]
[1742436366696,0.78827,2029.3,2029.2,0.6744]
[1742436367299,0.78827,2029.3,2029.2,1.46271]
[1742436367591,0.6745,2029.7,2029.2,3.8822]
[1742436367797,2.16514,2029.7,2029.5,0.78817]
[1742436368297,3.2078,2030.1,2029.5,3.302]
[1742436368494,3.2078,2030.1,2029.6,4.5061]
[1742436368704,0.78808,2029.8,2029.7,3.302]
[1742436368901,2.16502,2030.0,2029.7,3.302]
[1742436369104,3.2078,2030.1,2029.9,0.78804]
[1742436369295,3.99577,2030.1,2030.0,0.637]
[1742436369696,3.2078,2030.1,2029.7,3.302]
[1742436369897,0.78808,2029.8,2029.7,3.941]
[1742436370299,0.78808,2029.8,2029.7,0.637]
[1742436371700,0.78812,2029.7,2029.6,3.2078]
[1742436372006,2.16152,2029.7,2029.6,3.2078]
[1742436377100,5.45552,2029.7,2029.6,3.2078]
[1742436377409,0.78819,2029.5,2029.4,0.00738807]
[1742436377711,4.08319,2029.5,2029.4,0.00738807]
[1742436377909,9.79099,2029.5,2029.4,0.00738807]
[1742436378210,7.29099,2029.5,2029.4,0.00738807]
[1742436378409,9.30149,2029.5,2029.4,0.00738807]
[1742436380907,7.8512,2029.5,2029.4,0.00738807]
[1742436381105,3.9933,2029.8,2029.4,0.79561807]
[1742436381412,3.2078,2029.9,2029.5,1.9661]
[1742436381609,1.4032,2029.7,2029.5,1.9661]
[1742436381812,0.78815,2029.6,2029.5,1.9661]
[1742436384011,1.4032,2029.7,2029.5,2.75429]
[1742436384208,2.19134,2029.7,2029.6,1.3235]
[1742436384409,7.29787,2029.9,2029.6,1.3235]
[1742436384603,7.7967,2029.9,2029.6,2.11164]
[1742436384805,7.7967,2029.9,2029.7,0.6961]
[1742436385006,7.7967,2029.9,2029.8,1.3235]
[1742436385007,8.58474,2029.9,2029.8,1.3235]
[1742436385508,0.78815,2029.6,2029.5,0.6549]
[1742436385914,0.78819,2029.5,2029.4,3.21518807]
[1742436387014,0.78819,2029.5,2029.4,4.48988807]
[1742436387610,0.78819,2029.5,2029.4,5.27811807]
[1742436387805,0.78819,2029.5,2029.4,4.48988807]
[1742436388017,1.3033,2029.7,2029.4,4.48988807]
[1742436388317,2.09144,2029.7,2029.5,1.2747]
[1742436388508,2.09144,2029.7,2029.5,2.06287]
[1742436388708,1.3033,2029.7,2029.5,2.06287]
[1742436388908,2.09144,2029.7,2029.6,1.3378]
[1742436391213,0.78807,2029.9,2029.6,1.3378]
[1742436391420,0.78811,2029.8,2029.6,1.3378]
[1742436391611,0.78807,2029.9,2029.7,0.687]
[1742436391812,2.10807,2029.9,2029.8,1.3628]
[1742436392313,1.32,2029.9,2029.8,1.3628]
[1742436392521,0.788,2030.0,2029.9,0.78802]
[1742436392718,3.2078,2030.2,2029.9,0.78802]
[1742436392921,0.78802,2030.0,2029.8,0.78805]
[1742436393222,0.78802,2030.0,2029.8,0.78808]
[1742436393414,0.78802,2030.0,2029.9,0.78804]
[1742436393827,0.78804,2029.9,2029.8,0.78804]
[1742436394426,0.78803,2030.0,2029.7,7.8649]
[1742436395030,0.78803,2030.0,2029.8,0.78805]
[1742436395225,0.788,2030.0,2029.8,0.78805]
[1742436395525,0.78804,2029.9,2029.8,0.78805]
[1742436396124,0.78803,2030.0,2029.8,0.78805]
[1742436397023,1.32,2030.1,2029.8,0.78805]
[1742436397223,0.78803,2030.0,2029.8,0.78805]
[1742436397417,1.32,2030.1,2030.0,0.788]
[1742436397619,3.2078,2030.2,2030.1,0.78796]
[1742436397823,3.99572,2030.2,2030.1,0.78796]
[1742436398126,0.788,2030.0,2029.9,4.07701]
[1742436398516,0.78799,2030.1,2029.9,4.07701]
[1742436398719,0.788,2030.0,2029.9,4.07701]
[1742436398918,0.788,2030.0,2029.9,4.07704]
[1742436399222,0.788,2030.0,2029.9,3.289]
[1742436399929,0.78804,2029.9,2029.8,0.78807]
[1742436400820,0.78804,2029.9,2029.8,0.78808]
[1742436401029,2.06103,2030.0,2029.8,0.78808]
[1742436401327,0.78804,2029.9,2029.8,0.78808]
[1742436401522,0.78804,2029.9,2029.7,7.8589]
[1742436401523,0.78808,2029.8,2029.7,4.5719]
[1742436402327,0.78808,2029.8,2029.7,5.36002]
[1742436402523,0.78804,2029.9,2029.8,0.78808]
[1742436403322,0.7023,2030.3,2029.8,3.287]
[1742436403522,0.78792,2030.2,2030.1,0.78796]
[1742436403730,2.1389,2030.3,2030.2,0.6881]
[1742436404930,0.78792,2030.2,2030.1,0.6548]
[1742436405124,2.12282,2030.2,2030.1,1.3429]
[1742436405428,2.12282,2030.2,2030.1,2.13086]
[1742436405628,2.12282,2030.2,2030.1,1.3429]
[1742436406029,0.78796,2030.1,2030.0,3.2078]
[1742436406223,2.79356,2030.1,2030.0,3.2078]
[1742436406733,2.79356,2030.1,2030.0,4.5976]
[1742436406926,2.0056,2030.1,2030.0,5.3856]
[1742436407129,2.79356,2030.1,2030.0,5.3856]
[1742436407337,2.79356,2030.1,2030.0,4.5976]
[1742436408527,2.79356,2030.1,2030.0,3.2078]
[1742436409034,6.08056,2030.1,2030.0,3.2078]
[1742436413035,0.78804,2029.9,2029.8,1.3888]
[1742436413632,2.08814,2029.9,2029.8,1.3888]
[1742436416130,0.78808,2029.8,2029.7,3.2078]
[1742436416332,2.10378,2029.8,2029.7,3.2078]
[1742436416532,0.6828,2030.0,2029.7,3.2078]
[1742436416735,3.2078,2030.2,2029.8,1.338]
[1742436417032,0.78796,2030.1,2030.0,0.78798]
[1742436417234,0.78796,2030.1,2030.0,2.12598]
[1742436417437,3.2078,2030.2,2030.0,1.338]
[1742436417639,3.99572,2030.2,2030.1,1.338]
[1742436417839,2.1036,2030.3,2030.1,2.12594]
[1742436418042,0.7879,2030.3,2030.1,2.12593]
[1742436418337,0.78784,2030.4,2030.2,1.338]
[1742436418541,5.96,2030.7,2030.4,0.78784]
[1742436418740,0.78775,2030.7,2030.6,0.78777]
[1742436419035,0.78777,2030.6,2030.5,2.12578]
[1742436419337,0.78766,2030.9,2030.5,1.338]
[1742436419544,0.78765,2030.9,2030.8,0.78767]
[1742436420235,0.78769,2030.8,2030.7,1.3995]
[1742436420735,0.78769,2030.8,2030.7,2.18723]
[1742436420930,2.07138,2030.9,2030.7,2.18723]
[1742436421239,2.07138,2030.9,2030.8,1.3995]
[1742436421847,0.78768,2030.9,2030.8,1.3995]
[1742436422340,0.78768,2030.9,2030.8,2.0465]
[1742436424343,0.78773,2030.7,2030.6,3.2078]
[1742436425644,0.78773,2030.7,2030.6,4.5393]
[1742436426138,0.78773,2030.7,2030.6,5.32707]
[1742436426953,0.78773,2030.7,2030.6,4.5393]
[1742436428642,0.78773,2030.7,2030.6,5.32707]
[1742436429135,0.78773,2030.7,2030.6,4.5393]
[1742436429540,0.78773,2030.7,2030.6,5.32707]
[1742436429745,1.3061,2030.8,2030.6,4.5393]
[1742436429947,2.09381,2030.8,2030.7,2.0643]
[1742436430941,0.78768,2030.9,2030.7,2.85203]
[1742436431150,0.78768,2030.9,2030.8,2.0564]
[1742436431449,1.3363,2031.0,2030.8,2.84408]
[1742436431747,2.12391,2031.0,2030.9,1.2703]
[1742436433246,0.78773,2030.7,2030.6,3.2078]
[1742436433953,3.932,2030.8,2030.6,3.99556]
[1742436434154,0.78773,2030.7,2030.6,3.99556]
[1742436434343,0.78773,2030.7,2030.6,3.2078]
[1742436434643,2.11513,2030.7,2030.6,4.5841]
[1742436435548,1.3274,2030.7,2030.6,4.5841]
[1742436435752,2.11513,2030.7,2030.6,5.37187]
[1742436436349,2.11513,2030.7,2030.6,4.5841]
[1742436438350,1.3274,2030.7,2030.6,4.5841]
[1742436438544,3.285,2030.8,2030.6,4.5841]
[1742436438746,0.78768,2030.9,2030.7,2.06013]
[1742436438946,0.78768,2030.9,2030.8,1.2724]
[1742436439152,0.78768,2030.9,2030.8,1.9526]
[1742436439354,2.17418,2030.9,2030.8,1.9526]
[1742436439653,0.6763,2031.1,2030.9,0.78765]
[1742436439850,3.2078,2031.2,2031.0,1.2724]
[1742436440151,3.99535,2031.2,2031.0,2.05999]
[1742436440357,3.99536,2031.2,2031.0,2.05999]
[1742436440552,4.07248,2031.4,2031.2,0.78752]
[1742436440745,0.78749,2031.3,2031.1,0.78755]
[1742436440946,0.78749,2031.3,2031.0,3.2078]
[1742436440947,2.16088,2031.4,2031.2,1.45833]
[1742436441346,1.3734,2031.4,2031.3,0.78749]
[1742436441549,2.16086,2031.4,2031.2,1.45831]
[1742436442455,0.78749,2031.3,2031.2,0.6708]
[1742436443353,1.3734,2031.4,2031.2,0.6708]
[1742436443552,2.16088,2031.4,2031.2,0.6708]
[1742436444159,1.3734,2031.4,2031.2,1.45831]
[1742436444359,2.16086,2031.4,2031.2,1.45831]
[1742436445053,1.3734,2031.4,2031.2,0.6708]
[1742436445258,0.78757,2031.1,2031.0,3.2078]
[1742436445561,5.25391,2031.2,2030.7,7.25730606]
[1742436445859,0.78766,2030.9,2030.7,7.25730606]
[1742436446061,1.2758,2030.8,2030.7,8.04503606]
[1742436446262,1.2758,2030.8,2030.7,3.99553]
[1742436446464,1.2758,2030.8,2030.7,3.2078]
[1742436447060,0.78745,2031.5,2030.8,1.96921]
[1742436447256,1.4055,2031.4,2031.2,3.2078]
[1742436447562,1.4055,2031.4,2031.2,3.99531]
[1742436447958,1.4055,2031.4,2031.2,4.65531]
[1742436448158,1.4055,2031.4,2031.2,3.8678]
[1742436448351,1.4055,2031.4,2031.2,4.65531]
[1742436448554,1.4055,2031.4,2031.3,0.78749]
[1742436449655,4.5835,2031.7,2031.2,3.8678]
[1742436449855,1.3054,2031.5,2031.3,0.78747]
[1742436450056,2.09285,2031.5,2031.3,0.78748]
[1742436450253,1.3054,2031.5,2031.2,3.8678]
[1742436450464,2.09282,2031.5,2031.3,0.78749]
[1742436450964,1.3054,2031.5,2031.3,0.78749]
[1742436451263,1.3054,2031.5,2031.2,3.8678]
[1742436451264,1.3054,2031.5,2031.4,0.78746]
[1742436451454,4.5835,2031.7,2031.2,3.8678]
[1742436451662,3.2078,2031.8,2031.6,0.78737]
[1742436451854,1.3054,2031.7,2031.6,0.78737]
[1742436452359,1.3054,2031.7,2031.5,0.79476807]
[1742436452560,3.2078,2031.8,2031.7,0.78734]
[1742436453068,3.2078,2031.8,2031.6,0.78735]
[1742436453262,3.2078,2031.8,2031.7,0.78734]
[1742436453665,2.09387,2031.9,2031.7,0.78734]
[1742436453864,1.3066,2031.9,2031.8,0.7873]
[1742436454258,3.8518,2032.2,2031.8,3.2078]
[1742436454462,2.09381,2032.1,2031.9,0.78725]
[1742436454764,3.2078,2032.2,2032.0,0.7872]
[1742436455061,2.0938,2032.1,2031.9,0.78724]
[1742436455267,1.3066,2032.1,2032.0,0.78722]
[1742436455766,1.3066,2032.1,2031.9,3.284]
[1742436455973,1.3066,2032.1,2032.0,0.78722]
[1742436456571,0.78701,2032.6,2032.4,0.78706]
[1742436456869,1.4065,2032.5,2032.4,0.78706]
[1742436457065,1.4065,2032.5,2032.3,0.7024]
[1742436457261,2.19354,2032.5,2032.3,1.48948]
[1742436457461,2.14588,2032.7,2032.5,0.78703]
[1742436457661,0.78705,2032.5,2032.3,1.48949]
[1742436457862,2.19352,2032.6,2032.4,0.78707]
[1742436458061,0.78704,2032.5,2032.3,3.9864]
[1742436458359,0.78704,2032.5,2032.4,0.78707]
[1742436458360,1.4065,2032.5,2032.4,0.78707]
[1742436458670,2.19355,2032.5,2032.3,4.77349]
[1742436458870,0.78707,2032.4,2032.3,3.9864]
[1742436459071,1.3638,2032.4,2032.3,4.77351]
[1742436459770,2.15087,2032.4,2032.3,0.7024]
[1742436459960,1.3638,2032.4,2032.3,1.48951]
[1742436460557,0.78699,2032.6,2032.4,0.78703]
[1742436460761,0.78699,2032.6,2032.4,4.07004]
[1742436461172,0.78703,2032.5,2032.4,4.07004]
[1742436461374,2.15082,2032.6,2032.4,4.07004]
[1742436461773,1.3638,2032.6,2032.4,3.283]
[1742436461975,1.3638,2032.6,2032.4,4.07007]
[1742436461976,1.3541,2032.5,2032.4,4.07007]
[1742436462475,2.14113,2032.5,2032.4,3.283]
[1742436462866,0.78707,2032.4,2032.3,0.7024]
[1742436463168,2.14117,2032.4,2032.3,0.7024]
[1742436463663,0.78711,2032.3,2032.2,7.1633]
[1742436463869,1.3541,2032.3,2032.2,3.8803]
[1742436464372,1.3541,2032.3,2032.2,4.66745]
[1742436465969,2.14121,2032.3,2032.2,3.8803]
[1742436466475,2.14121,2032.3,2032.2,4.66745]
[1742436466671,2.14121,2032.3,2032.2,3.2078]
[1742436467874,2.14121,2032.3,2032.1,0.78717]
[1742436468064,1.2709,2032.2,2032.1,0.78717]
[1742436468776,2.05795,2032.5,2032.3,0.78709]
[1742436468979,1.2709,2032.4,2032.3,0.78709]
[1742436470777,2.05797,2032.4,2032.3,0.78709]
[1742436471982,0.78711,2032.3,2032.2,3.99491]
[1742436472176,2.19081,2032.3,2032.2,3.2078]
[1742436472368,2.19081,2032.3,2032.2,3.99495]
[1742436472982,2.19081,2032.3,2032.2,3.2078]
[1742436473481,1.4037,2032.3,2032.2,0.78715]
[1742436473779,0.78706,2032.5,2032.3,0.78707]
[1742436473983,2.09456,2032.5,2032.3,0.78707]
[1742436474167,2.09456,2032.5,2032.4,0.78707]
[1742436474370,1.3075,2032.5,2032.2,3.2078]
[1742436474570,2.09457,2032.5,2032.3,0.78708]
[1742436474771,1.3075,2032.5,2032.3,0.78708]
[1742436474965,0.78711,2032.3,2032.2,3.99492]
[1742436475378,0.78711,2032.3,2032.2,0.78712]
[1742436475572,1.3075,2032.4,2032.2,0.78715]
[1742436475772,0.78711,2032.3,2032.2,0.78715]
[1742436476276,0.78711,2032.3,2032.2,2.14825]
[1742436476477,0.78711,2032.3,2032.2,5.35605]
[1742436477483,2.0946,2032.4,2032.3,0.78711]
[1742436477782,3.283,2032.6,2032.3,1.3032]
[1742436477984,0.78707,2032.4,2032.3,2.09028]
[1742436478382,2.18046,2032.5,2032.4,0.78707]
[1742436478585,2.18047,2032.5,2032.3,0.78707]
[1742436478781,0.78707,2032.4,2032.3,0.78707]
[1742436479581,2.18046,2032.5,2032.4,0.78707]
[1742436480289,0.78707,2032.4,2032.3,0.78708]
[1742436482684,0.78704,2032.5,2032.4,0.78705]
[1742436482890,2.08624,2032.5,2032.4,0.78705]
[1742436484487,1.2992,2032.5,2032.4,0.78705]
[1742436484689,0.78701,2032.6,2032.5,0.78703]
[1742436484883,2.08751,2032.6,2032.5,0.78703]
[1742436485879,1.3005,2032.6,2032.5,0.78703]
[1742436487292,1.3005,2032.6,2032.4,2.09335]
[1742436487481,0.78703,2032.5,2032.4,1.3063]
[1742436487680,0.78703,2032.5,2032.2,3.2078]
[1742436487681,0.78715,2032.2,2032.1,0.6926]
[1742436487881,0.78715,2032.2,2032.0,0.78721]
[1742436488083,2.12408,2032.1,2031.9,55.50080606]
[1742436488293,1.3369,2032.0,2031.9,55.52056]
[1742436488493,0.78716,2032.2,2032.0,0.78719]
[1742436488678,1.3369,2032.1,2032.0,0.78719]
[1742436489791,1.3369,2032.1,2031.9,7.96154]
[1742436489992,0.78722,2032.0,2031.9,7.1743]
[1742436490794,0.78722,2032.0,2031.9,7.96156]
[1742436491092,2.12411,2032.1,2031.9,7.96156]
[1742436491297,0.78722,2032.0,2031.9,7.1743]
[1742436491588,1.3357,2032.0,2031.9,7.96156]
[1742436491785,0.7872,2032.1,2031.9,7.1743]
[1742436491986,0.7872,2032.1,2031.9,7.96154]
[1742436492189,1.3357,2032.0,2031.9,7.96154]
[1742436492384,0.78716,2032.2,2032.1,0.78718]
[1742436492588,2.07586,2032.2,2032.1,0.78718]
[1742436492788,2.07585,2032.2,2032.0,0.7872]
[1742436493793,1.2887,2032.2,2031.9,7.96153]
[1742436493997,2.0759,2032.1,2031.9,7.1743]
[1742436494197,2.0759,2032.1,2031.9,7.96154]
[1742436494698,2.0759,2032.1,2032.0,0.78722]
[1742436495193,2.0759,2032.1,2031.9,7.1743]
[1742436495194,0.78722,2032.0,2031.9,7.1743]
[1742436495399,2.12282,2032.0,2031.9,3.8923]
[1742436495894,0.78728,2031.9,2031.7,0.78732]
[1742436496094,2.12288,2031.9,2031.7,0.78732]
[1742436496294,2.12286,2031.9,2031.8,1.266]
[1742436496597,0.78726,2031.9,2031.8,1.266]
[1742436498888,3.8635,2032.1,2031.8,1.266]
[1742436498889,0.78725,2032.0,2031.8,1.266]
[1742436499092,0.78724,2032.0,2031.8,2.05329]
[1742436499497,0.78724,2032.0,2031.9,1.2926]
[1742436501002,3.2078,2032.1,2031.9,1.2926]
[1742436501204,3.2078,2032.1,2032.0,1.45152]
[1742436501501,3.99498,2032.1,2032.0,1.34]
[1742436501898,0.78726,2031.9,2031.8,3.282]
[1742436502096,0.7873,2031.8,2031.7,0.6757]
[1742436502604,0.7873,2031.8,2031.7,1.46304]
[1742436502901,0.7873,2031.8,2031.7,0.6757]
[1742436503200,0.6417,2032.0,2031.7,2.76072]
[1742436503201,0.654,2031.9,2031.7,2.76072]
[1742436503404,1.42896,2032.0,2031.8,2.085]
[1742436503706,0.78726,2032.0,2031.9,1.2977]
[1742436503906,3.8618,2032.1,2031.9,2.08496]
[1742436504206,0.654,2032.1,2031.9,2.08496]
[1742436504397,0.78721,2032.1,2032.0,2.12302]
[1742436504599,0.78721,2032.1,2032.0,1.3358]
[1742436505408,0.78721,2032.1,2032.0,2.0362]
[1742436506608,0.78726,2031.9,2031.8,3.2078]
[1742436506797,0.78726,2031.9,2031.8,4.5436]
[1742436507805,0.78726,2031.9,2031.8,3.2078]
[1742436509710,0.78726,2031.9,2031.8,4.5206]
[1742436510408,0.78726,2031.9,2031.8,5.3079]
[1742436510616,0.78725,2032.0,2031.8,4.5206]
[1742436510810,0.78725,2032.0,2031.9,1.3502]
[1742436510811,0.78722,2032.0,2031.9,1.3502]
[1742436514316,0.78726,2031.9,2031.8,3.2078]
[1742436514907,0.78726,2031.9,2031.8,4.483]
[1742436517315,2.14115,2032.0,2031.8,5.27027]
[1742436517507,2.14115,2032.0,2031.9,1.3928]
[1742436517714,1.3165,2032.3,2031.9,2.0329]
[1742436517916,1.3414,2032.2,2032.0,1.48071]